[Event "FIDE WSCC 65 2022"]
[Site "Assisi"]
[Date "2022.11.22"]
[Round "7.7"]
[White "Legky, Nikolay A"]
[Black "Koehler, Gerhard"]
[Result "1-0"]
[ECO "A69"]
[WhiteElo "2350"]
[BlackElo "2198"]
[Annotator "TA"]
[PlyCount "45"]
[EventDate "2022.11.14"]
[EventType "swiss"]
[EventCountry "ITA"]
[SourceTitle "playchess.com"]
[Source "ChessBase"]
[SourceQuality "1"]
[TimeControl "40/5400+30:1800+30"]

{[%evp 22,45,0,0,0,-29,-1,0,30,26,102,93,100,100,107,102,517,529,1039,1021,1133,1085,1202,1190,1065,996]} 1. d4 {[%emt 0:00:06]} Nf6 {[%emt 0:00:08]} 2. c4 {[%emt 0:00:11]} d6 {[%emt 0:00:14]} 3. Nc3 {[%emt 0:00:23]} g6 {[%emt 0:00:07]} 4. e4 {[%emt 0:00:13]} Bg7 {[%emt 0:00:09]} 5. f4 {[%emt 0:00:32]} c5 {[%emt 0:00:15]} 6. d5 {[%emt 0:00:05]} O-O {[%emt 0:00:49]} 7. Nf3 {[%emt 0:00:04]} e6 {[%emt 0:00:55]} 8. Be2 {[%emt 0:00:05]} exd5 {[%emt 0:00:42]} 9. cxd5 {[%emt 0:00:05]} Re8 {[%emt 0:00:54]} 10. e5 {[%emt 0:00:07]} dxe5 {[%emt 0:09:52]} 11. fxe5 {[%emt 0:00:06]} Ng4 {[%emt 0:00:06]} 12. e6 {[%emt 0:00:04]} fxe6 {[%emt 0:00:46] A69: Modern Benoni: Four Pawns Attack with 9...Re8.} 13. d6 {[%emt 0:00:03]} Bd7 {[%emt 0:21:28] has lost popularity (13...Nc6).} 14. O-O {[%emt 0:00:08]} c4 {[%emt 0:02:39] The position is equal.} 15. Kh1 {[%emt 0:08:04]} Qb6 {[%emt 0:02:01] [#]} (15... Nc6 $11 {keeps the balance.}) 16. Qe1 $1 $16 {[%emt 0:26:40] [#] aiming for Qh4.} Ne3 $146 {[%emt 0:03:38]} ({Predecessor:} 16... Nc6 17. Qh4 Nge5 18. Ng5 h6 19. Nge4 h5 20. Bxh5 Rf8 21. Bf3 Nxf3 22. gxf3 Ne5 {1-0 (31) Ferrara,E (2189)-Meza,A (2034) Tacuari 2018}) 17. Bxe3 {[%emt 0:00:04]} Qxe3 {[%emt 0:00:10]} 18. Bxc4 {[%emt 0:00:03]} Qf4 {[%emt 0:14:01][%mdl 8192]} (18... Qxe1 $16 19. Raxe1 Na6) 19. Ne4 $18 {[%emt 0:18:49] Nfg5 is the strong threat. White is clearly winning.} Nc6 {[%emt 0:05:48]} 20. Nfg5 {[%emt 0:00:05]} Qe5 {[%emt 0:00:14]} 21. Qh4 {[%emt 0:01:02][%csl Gg5][%cal Rh4h7]} h5 {[%emt 0:03:15]} 22. Nf7 {[%emt 0:04:23] Pair of Knights!} ({Less strong is} 22. Qf2 Rf8 23. Qg3 Rxf1+ 24. Rxf1 Rf8 $14) 22... Qd4 {[%emt 0:00:58] [#]} 23. Rad1 $1 {[%emt 0:04:22] Black did not feel at home in the position after the opening.  Weighted Error Value: White=0.00 (flawless) /Black=0.91} 1-0

[Event "FIDE WSCC 65 2022"]
[Site "Assisi"]
[Date "2022.11.22"]
[Round "7.8"]
[White "Bogdanov, Valentin"]
[Black "Lederman, Leon"]
[Result "1-0"]
[ECO "D20"]
[WhiteElo "2323"]
[BlackElo "2215"]
[Annotator "TA"]
[PlyCount "76"]
[EventDate "2022.11.14"]
[EventType "swiss"]
[EventCountry "ITA"]
[SourceTitle "playchess.com"]
[Source "ChessBase"]
[SourceQuality "1"]
[TimeControl "40/5400+30:1800+30"]

{[%evp 16,76,0,-1,0,-34,-37,-41,30,-28,24,-11,41,53,58,0,49,83,173,177,206,209,235,227,264,33,39,15,114,112,113,114,122,67,152,148,158,152,198,173,225,200,202,200,222,231,329,307,449,440,685,677,700,694,678,677,651,635,29978,29978,29975,683,29995]} 1. d4 {[%emt 0:00:02]} d5 {[%emt 0:00:04]} 2. c4 {[%emt 0:00:08]} dxc4 {[%emt 0:00:05]} 3. e4 {[%emt 0:00:47]} e5 {[%emt 0:00:07]} 4. Nf3 {[%emt 0:00:16]} exd4 {[%emt 0:00:32]} 5. Bxc4 {[%emt 0:00:08]} Bb4+ {[%emt 0:02:57]} 6. Nbd2 {[%emt 0:00:40]} Nc6 {[%emt 0:03:11]} 7. O-O {[%emt 0:03:00]} Nf6 {[%emt 0:04:18]} 8. a3 {[%emt 0:09:47]} Bxd2 {[%emt 0:05:52] has lost popularity (8...Be7).} 9. Bxd2 {[%emt 0:00:09]} O-O {[%emt 0:00:28] D20: Queen's Gambit Accepted: 3 e3 and 3 e4.} 10. Re1 {[%emt 0:04:27]} Bg4 $1 {[%emt 0:02:57]} 11. e5 {[%emt 0:05:23] [#]} Nd5 $146 {[%emt 0:02:26]} (11... Nd7 $15 12. Bf4 Nc5) ({Predecessor:} 11... Nd7 12. Bf4 Nc5 13. b4 Ne6 14. Bd2 d3 15. Re3 Ncd4 16. Qf1 Bxf3 17. gxf3 Qg5+ 18. Kh1 Nxf3 19. Bc3 Qf4 20. Qg2 Qxc4 {0-1 (20) Wickstrom,L (2237)-Svensson,B (2385) Sweden 2012}) 12. Qe2 {[%emt 0:06:47]} (12. h3 $142 $1 Nb6 13. Bxf7+ Rxf7 14. hxg4) 12... Qd7 {[%emt 0:11:41]} (12... Nb6 $142 13. Bd3 Re8) 13. Qe4 {[%emt 0:01:28]} (13. h3 $5 {[%cal Rh3g4]} Bf5 14. Nh4 $11) 13... Bxf3 {[%emt 0:02:14]} (13... Nde7 $11) 14. Qxf3 $14 {[%emt 0:00:22]} Nce7 {[%emt 0:03:12]} 15. Bd3 {[%emt 0:06:53]} ({White should play} 15. Qe4 $14) 15... Rae8 {[%emt 0:12:23]} (15... g6 $11 {was preferrable.}) 16. Qe4 $40 {[%emt 0:04:18][%csl Gd3,LRd4,LRh7][%cal Re4h7][%mdl 128] White has strong attack.} f5 {[%emt 0:02:22]} (16... Ng6 $16 {is a better defense.}) 17. exf6 $1 $18 {[%emt 0:04:09]} ({Inferior is} 17. Qxd4 Nc6 18. Qa4 Rxe5 $11) 17... Nxf6 {[%emt 0:00:08]} 18. Qxb7 {[%emt 0:01:09]} Rb8 {[%emt 0:03:21]} 19. Qxa7 {[%emt 0:02:28]} Rxb2 {[%emt 0:02:31]} 20. Rxe7 $2 {[%emt 0:07:01]} Qxe7 $14 {[%emt 0:00:08]} 21. Qxd4 {[%emt 0:00:10]} (21. Bb4 $5 Rxb4 22. axb4 $14) 21... Rxd2 {[%emt 0:08:24]} (21... Rbb8 $11 {keeps the balance.}) 22. Bc4+ $16 {[%emt 0:00:18][%mdl 64] Discovered Attack} Kh8 {[%emt 0:00:04]} 23. Qxd2 {[%emt 0:00:24]} Ng4 {[%emt 0:04:33] aiming for ...Qe5.} 24. Qe2 {[%emt 0:02:27]} ({White should try} 24. Qd4 $1 $16 {[%cal Rd4g4]} Qg5 25. Rf1) 24... Qf6 {[%emt 0:07:55] [#]} (24... Qh4 $14 25. h3 Ne5) 25. Rf1 $1 {[%emt 0:00:58]} Ne5 {[%emt 0:04:08]} 26. Bd5 {[%emt 0:02:47]} Qd6 {[%emt 0:02:11]} (26... c6 $16 {keeps fighting.}) 27. Be4 {[%emt 0:01:41]} c5 {[%emt 0:02:15]} (27... g6 $142 28. Qb2 Qf6) 28. a4 {[%emt 0:04:09]} c4 {[%emt 0:01:51]} 29. Rd1 {[%emt 0:03:49] Prevents Nd3.} Qc7 {[%emt 0:01:00]} 30. h3 {[%emt 0:03:22]} g6 {[%emt 0:01:05]} (30... h6 $142 31. Rd5 Re8) 31. Rd5 {[%emt 0:02:07]} Rd8 {[%emt 0:03:20]} (31... Nd3 $142 32. Bxd3 cxd3 33. Rxd3 Qc1+ 34. Rd1 Qc3) 32. Qd2 $18 {[%emt 0:03:10]} Rxd5 {[%emt 0:04:43]} (32... Re8 $142 33. Qd4 Kg8) 33. Qxd5 {[%emt 0:00:18][%mdl 4096] Endgame KQB-KQN} ({Weaker is} 33. Bxd5 Qc5 $16) 33... Kg7 {[%emt 0:00:37]} 34. a5 {[%emt 0:00:27][%cal Ba4a5,Ba5a6,Ba6a7][%mdl 32]} c3 {[%emt 0:00:37]} 35. a6 {[%emt 0:00:24] Qd4 is the strong threat.} Nd7 {[%emt 0:00:49]} 36. Qd4+ {[%emt 0:00:47]} Kh6 {[%emt 0:01:30]} 37. a7 {[%emt 0:00:37]} Nb6 {[%emt 0:00:05] [#]} 38. Qxb6 $3 {[%emt 0:00:35][%mdl 512]} Qd8 {[%emt 0:02:19] Weighted Error Value: White=0.44/Black=0.60} (38... Qxb6 39. a8=Q) 1-0

[Event "FIDE WSCC 65 2022"]
[Site "Assisi"]
[Date "2022.11.22"]
[Round "7.9"]
[White "Jurek, Josef"]
[Black "Renman, Nils-Gustaf"]
[Result "1/2-1/2"]
[ECO "A13"]
[WhiteElo "2211"]
[BlackElo "2320"]
[Annotator "TA"]
[PlyCount "71"]
[EventDate "2022.11.14"]
[EventType "swiss"]
[EventCountry "ITA"]
[SourceTitle "playchess.com"]
[Source "ChessBase"]
[SourceQuality "1"]
[TimeControl "40/5400+30:1800+30"]

{[%evp 12,71,23,0,0,0,0,-52,-41,-55,-47,-64,-70,-379,-385,-368,-6,-8,-9,0,18,50,47,0,72,13,55,71,80,68,80,61,84,94,191,105,173,-7,0,0,37,37,38,45,45,45,47,47,35,45,50,29,40,28,29,29,57,0,0,0,0,0]} 1. Nf3 {[%emt 0:00:06]} d5 {[%emt 0:00:08]} 2. e3 {[%emt 0:00:12]} Nf6 {[%emt 0:00:13]} 3. c4 {[%emt 0:00:11]} e6 {[%emt 0:00:20]} 4. b3 {[%emt 0:00:28]} c5 {[%emt 0:01:08]} 5. Bb2 {[%emt 0:00:31]} Nc6 {[%emt 0:00:46]} 6. cxd5 {[%emt 0:01:01]} exd5 {[%emt 0:02:28]} 7. d4 {[%emt 0:00:50]} cxd4 {[%emt 0:03:08] A13: English Opening: 1...e6.} 8. Nxd4 {[%emt 0:00:41]} Bb4+ {[%emt 0:00:20]} 9. Nc3 {[%emt 0:02:52]} (9. Bc3 $11) 9... Ne4 {[%emt 0:01:52] Black is slightly better.} 10. Rc1 {[%emt 0:00:58] [#]} Qf6 $146 {[%emt 0:03:29][%csl Ge4][%cal Rf6f2]} ({Predecessor:} 10... Qa5 11. Nxc6 bxc6 12. Qd4 Qxa2 13. Bd3 Qxb2 14. Bxe4 Qxc1+ 15. Ke2 Qxc3 16. Qxc3 Bxc3 17. Bd3 {0-1 (17) Brunello,S (2553)-Heberla,B (2555) Katowice 2017}) 11. Qf3 {[%emt 0:09:03]} Qg6 {[%emt 0:10:30]} 12. h4 $2 {[%emt 0:22:59][%mdl 8192]} (12. Nxc6 $15 Qxc6 13. Qf4) 12... Bg4 $19 {[%emt 0:29:13]} 13. Qf4 {[%emt 0:00:52][%cal Oh4h5]} Nxc3 $2 {[%emt 0:05:24]} (13... Nxd4 $1 $19 14. exd4 O-O) 14. Nxc6 $11 {[%emt 0:04:46]} bxc6 {[%emt 0:09:59]} 15. Qe5+ $1 {[%emt 0:09:28]} Kd7 {[%emt 0:09:09]} 16. Bxc3 {[%emt 0:03:25]} Ba3 {[%emt 0:05:50]} 17. Bb2 {[%emt 0:08:22]} (17. h5 $14 {was preferrable.} f6 18. Qd4) 17... Rhe8 {[%emt 0:00:15] [#]} (17... Bb4+ $1 $11 {keeps the balance.} 18. Bc3 Rhe8) 18. Qd4 {[%emt 0:07:32] Chess con chili.} ({White should try} 18. Qc3 $1 $16 Bxb2 19. Qxb2) 18... Bxb2 {[%emt 0:01:40]} (18... Re4 $5 {[%cal Re4d4]} 19. Qd2 Bb4 $11) 19. Qxb2 {[%emt 0:00:29]} Bf5 {[%emt 0:00:39]} 20. h5 {[%emt 0:03:00]} Qg5 {[%emt 0:00:32]} 21. Qd4 {[%emt 0:02:40][%cal Of1b5]} Re6 {[%emt 0:03:46]} 22. Rh4 {[%emt 0:03:59]} Be4 {[%emt 0:02:10]} (22... Qf6 $16) 23. g3 {[%emt 0:02:29]} (23. Rf4 $18) 23... Qe5 {[%emt 0:00:05] [#]} (23... Ke8 $16 {was called for.}) 24. Kd2 $2 {[%emt 0:03:57]} (24. Bh3 $1 $18 {Strongly threatening Qxe5.} f5 25. Qxe5 Rxe5 26. Ke2) 24... Qxd4+ {[%emt 0:00:37]} 25. exd4 {[%emt 0:00:03]} Kd6 {[%emt 0:00:29]} 26. Rf4 {[%emt 0:01:30] aiming for f3.} Rf8 {[%emt 0:02:09]} 27. f3 {[%emt 0:03:21]} g5 {[%emt 0:00:02]} 28. hxg6 $1 {[%emt 0:00:12]} Bxg6 {[%emt 0:00:09]} 29. Bh3 {[%emt 0:03:13]} f5 {[%emt 0:00:06]} 30. Bf1 {[%emt 0:02:10]} a5 {[%emt 0:02:36][%cal Oa5a4]} 31. Bd3 {[%emt 0:00:39]} (31. Rc5 $5 {[%cal Rc5a5]}) 31... Rb8 {[%emt 0:03:28]} 32. Bxf5 {[%emt 0:01:02]} Bxf5 {[%emt 0:00:07]} 33. Rxf5 {[%emt 0:00:06]} Rbe8 {[%emt 0:00:07]} 34. Re5 {[%emt 0:00:50]} (34. Rc2 $14) 34... Rxe5 {[%emt 0:00:07]} 35. dxe5+ {[%emt 0:00:08]} Rxe5 {[%emt 0:00:10]} 36. g4 {[%emt 0:00:57] Inhibits Rh5. Quite a comeback for White.  Weighted Error Value: White=0.41/Black=0.39} 1/2-1/2

[Event "FIDE WSCC 65 2022"]
[Site "Assisi"]
[Date "2022.11.22"]
[Round "7.10"]
[White "Binham, Timothy F."]
[Black "Bergstrom, Rolf"]
[Result "0-1"]
[ECO "B07"]
[WhiteElo "2284"]
[BlackElo "2166"]
[Annotator "TA"]
[PlyCount "80"]
[EventDate "2022.11.14"]
[EventType "swiss"]
[EventCountry "ITA"]
[SourceTitle "playchess.com"]
[Source "ChessBase"]
[SourceQuality "1"]
[TimeControl "40/5400+30:1800+30"]

{[%evp 9,80,27,35,33,39,30,27,32,29,33,34,29,34,0,40,0,-5,-6,0,-20,0,0,0,-39,-40,-151,-182,-210,-233,-253,-251,-295,-286,-289,-212,-237,-264,-255,-158,-306,-266,-300,-302,-264,-266,-287,-243,-242,-241,-263,-250,-271,-272,-272,-269,-264,-244,-417,-417,-410,-404,-441,-248,-228,-206,-455,-465,-447,-438,-620,-604,-899,-431]} 1. e4 {[%emt 0:00:05]} d6 {[%emt 0:00:24]} 2. d4 {[%emt 0:00:11]} Nf6 {[%emt 0:00:27]} 3. Nc3 {[%emt 0:00:05]} e5 {[%emt 0:00:37]} 4. Nge2 {[%emt 0:01:37]} Be7 {[%emt 0:00:46]} 5. h3 {[%emt 0:01:50]} h5 {[%emt 0:01:13]} 6. g3 {[%emt 0:01:35] B07: Pirc Defence: Miscellaneous Systems.} Nbd7 {[%emt 0:01:03][%cal Ob7b5]} 7. Bg2 {[%emt 0:00:57]} c6 {[%emt 0:00:56]} 8. a4 {[%emt 0:01:51] White has an edge.} b6 {[%emt 0:01:21][%cal Bb7b6,Bb6b5][%mdl 32]} 9. O-O {[%emt 0:09:36]} a6 {[%emt 0:03:06]} 10. Be3 {[%emt 0:07:26]} O-O {[%emt 0:01:41]} 11. f4 {[%emt 0:13:38]} Qc7 {[%emt 0:02:37]} 12. Qe1 {[%emt 0:14:55]} Bb7 {[%emt 0:03:58]} 13. Qf2 {[%emt 0:01:32]} b5 {[%emt 0:00:42] [#]} 14. b4 $146 {[%emt 0:07:24]} ({Predecessor:} 14. dxe5 dxe5 15. f5 b4 16. Nb1 c5 17. Nd2 c4 18. c3 Nc5 19. cxb4 Nd3 20. Qf3 Bxb4 {0-1 (38) Wieczorek,O (2463)-Moranda,W (2593) Wroclaw 2017}) 14... Rfe8 {[%emt 0:07:35]} (14... a5 {seems wilder.} 15. axb5 axb4 16. b6 Qb8) 15. Rab1 {[%emt 0:01:29]} Bf8 {[%emt 0:07:43]} 16. fxe5 {[%emt 0:06:56]} dxe5 {[%emt 0:00:08]} 17. Bg5 {[%emt 0:04:04] Black continues to play with concentration.} (17. axb5 $15 axb5 18. d5) 17... a5 $17 {[%emt 0:04:30][%cal Ba6a5,Ba5b4][%mdl 32]} 18. axb5 {[%emt 0:01:21]} axb4 {[%emt 0:00:10]} 19. bxc6 {[%emt 0:00:24]} Bxc6 {[%emt 0:00:53]} 20. Nd5 {[%emt 0:01:34]} Bxd5 {[%emt 0:00:19]} 21. exd5 {[%emt 0:00:02][%cal Od5d6]} Qxc2 {[%emt 0:00:59]} 22. Rfc1 {[%emt 0:00:39]} Qg6 {[%emt 0:04:25]} 23. Bxf6 {[%emt 0:03:02]} Qxf6 {[%emt 0:01:14]} ({And not} 23... gxf6 24. Rb2 $17) 24. Rc7 {[%emt 0:02:55]} (24. Qxf6 $17 Nxf6 25. d6) 24... Rad8 {[%emt 0:02:49]} 25. Qxf6 {[%emt 0:14:33]} Nxf6 {[%emt 0:01:07]} 26. dxe5 {[%emt 0:00:33]} Rxe5 {[%emt 0:02:31]} 27. Nf4 {[%emt 0:01:29]} Re3 {[%emt 0:01:37]} 28. Kf2 {[%emt 0:01:31] [#]} Ra3 {[%emt 0:02:15]} 29. Bf3 {[%emt 0:00:26]} h4 {[%emt 0:01:14]} 30. gxh4 {[%emt 0:00:18]} Bd6 {[%emt 0:00:20][%csl LRc7,LRf4]} 31. Rc4 {[%emt 0:00:02]} Re8 {[%emt 0:01:14]} 32. Rb2 {[%emt 0:01:13]} Kh7 {[%emt 0:05:58]} 33. h5 $2 {[%emt 0:00:45]} (33. Nh5) 33... Ree3 $19 {[%emt 0:01:53]} 34. Bg2 {[%emt 0:00:29]} Rec3 {[%emt 0:01:17]} 35. Rcxb4 {[%emt 0:00:32]} Bxb4 {[%emt 0:00:30]} (35... Bc5+ $142 36. Ke1 Bxb4 37. Rxb4 Ra2) 36. Rxb4 {[%emt 0:00:01]} Ra2+ {[%emt 0:01:23]} 37. Kg1 $2 {[%emt 0:00:02]} (37. Ne2) 37... Rc1+ {[%emt 0:03:22] Black is clearly winning.} 38. Kh2 {[%emt 0:00:02]} Rcc2 {[%emt 0:00:36][%cal Of6d5] Hoping for ...Nxd5!} 39. Kg1 {[%emt 0:00:06]} (39. h4 $142) 39... Kh6 {[%emt 0:01:26][%cal Of6d5] White must now prevent ...Nxd5!} 40. d6 {[%emt 0:02:43] [#]} Rd2 {[%emt 0:02:45] Weighted Error Value: White=0.50/Black=0.24 (precise)} (40... Nd5 $142 $1 {[%mdl 512]} 41. d7 Nxf4) 0-1

[Event "FIDE WSCC 65 2022"]
[Site "Assisi"]
[Date "2022.11.22"]
[Round "7.11"]
[White "Gaprindashvili, Nona"]
[Black "Molchanov, Mykola"]
[Result "1-0"]
[ECO "A40"]
[WhiteElo "2268"]
[BlackElo "2113"]
[Annotator "TA"]
[PlyCount "145"]
[EventDate "2022.11.14"]
[EventType "swiss"]
[EventCountry "ITA"]
[SourceTitle "playchess.com"]
[Source "ChessBase"]
[SourceQuality "1"]
[TimeControl "40/5400+30:1800+30"]

{[%evp 11,145,-6,14,-33,-21,-14,-27,-34,-26,-36,-5,-3,-1,0,15,-48,10,0,26,35,45,31,38,0,0,0,0,0,0,0,0,0,16,0,27,27,15,28,11,17,32,3,63,64,134,158,206,193,197,206,206,185,184,117,124,118,217,216,160,134,140,124,136,122,135,120,116,109,114,105,122,112,114,124,221,122,127,125,203,224,251,243,380,364,494,470,433,321,336,78,81,81,81,81,197,139,190,45,45,45,132,128,271,264,222,76,76,76,81,81,81,81,81,81,588,500,1460,1370,29968,29969,5933,5920,29980,29981,29984,29981,29983,29984,29985,29986,29986,29987,29995,29996,29996,29997]} 1. d4 {[%emt 0:00:05]} e6 {[%emt 0:00:32]} 2. c4 {[%emt 0:00:10]} b6 {[%emt 0:00:20]} 3. Nc3 {[%emt 0:00:58]} Bb7 {[%emt 0:00:21]} 4. a3 {[%emt 0:05:31]} f5 {[%emt 0:00:55]} 5. Nf3 {[%emt 0:00:57]} Nf6 {[%emt 0:00:34]} 6. d5 {[%emt 0:00:54]} Bd6 {[%emt 0:01:20]} 7. dxe6 {[%emt 0:05:15] A40: Unusual replies to 1 d4.} (7. g3 $11 {deserves consideration.}) 7... dxe6 $15 {[%emt 0:00:29]} 8. Nb5 {[%emt 0:00:14]} O-O {[%emt 1:29:59]} 9. Nxd6 {[%emt 0:00:51] Black has an edge.} cxd6 {[%emt 0:00:00]} 10. e3 {[%emt 0:01:11]} Qe7 {[%emt 0:00:00]} 11. Be2 {[%emt 0:00:14]} Nbd7 {[%emt 0:00:00][%cal Bb8d7,Bd7c5,Bc5e4,Be4c3][%mdl 32]} 12. O-O {[%emt 0:02:01] [#]} Rac8 $146 {[%emt 0:00:00]} ({Predecessor:} 12... Ne4 13. Nd4 Ne5 14. f3 Nf6 15. b3 a6 16. a4 Rad8 17. a5 bxa5 18. Rxa5 Rfe8 {0-1 (50) Shuvalova,P (2441)-Khlichkova,T (2270) St Petersburg 2018}) 13. b3 {[%emt 0:01:47]} (13. Nd4 $1 $11) 13... Rfd8 {[%emt 0:00:00]} (13... Ne4 $15) 14. Bb2 $11 {[%emt 0:00:56]} Nc5 {[%emt 0:00:00]} 15. Nd4 {[%emt 0:01:54]} d5 {[%emt 0:00:00]} 16. b4 {[%emt 0:02:06]} Nce4 {[%emt 0:00:00]} 17. cxd5 {[%emt 0:14:11]} Nxd5 {[%emt 0:00:00]} 18. Bd3 {[%emt 0:03:14]} Ndc3 {[%emt 0:00:00]} 19. Bxc3 {[%emt 0:05:09]} Nxc3 {[%emt 0:00:00]} 20. Qb3 {[%emt 0:05:38][%csl LRe6,LRf5]} Bd5 {[%emt 0:00:00]} 21. Qb2 {[%emt 0:00:46]} g6 {[%emt 0:00:00]} 22. Ba6 {[%emt 0:01:32]} Rc7 {[%emt 0:00:00]} (22... Qg5 $2 23. f4 Na4 24. Qd2 $18 (24. fxg5 Nxb2 25. Bxc8 Rxc8 $18)) 23. Rac1 {[%emt 0:02:30]} Ne4 {[%emt 0:00:00]} (23... Qg5 $2 24. f4 Qg4 25. g3 $18) 24. Rxc7 {[%emt 0:00:37]} Qxc7 {[%emt 0:00:00]} 25. Rc1 {[%emt 0:00:13]} Qd7 {[%emt 0:00:00]} 26. Qc2 {[%emt 0:00:40]} e5 {[%emt 0:00:00]} ({Better is} 26... Nd6 $11) 27. Nf3 $14 {[%emt 0:00:51][%cal Bd4f3,Bf3e5,Be5c6][%mdl 32]} Be6 {[%emt 0:00:00]} (27... Qd6 $14) 28. Nxe5 $16 {[%emt 0:02:54]} Qd2 {[%emt 0:00:00]} (28... Qd6 $16 {was worth a try.}) 29. Qxd2 $18 {[%emt 0:00:53]} Rxd2 {[%emt 0:00:00]} 30. f3 {[%emt 0:00:13]} Nd6 {[%emt 0:00:00]} 31. Rc7 {[%emt 0:01:47]} Rd5 {[%emt 0:00:00]} 32. Nc6 {[%emt 0:01:13]} (32. Nd3 $18) 32... Rd1+ $16 {[%emt 0:00:00]} 33. Kf2 {[%emt 0:00:27] White is more active.} f4 {[%emt 0:00:00]} (33... Rd2+ $16 34. Kg3 Ra2) 34. Nd4 $18 {[%emt 0:02:16]} (34. Nxa7 $6 Rd2+ 35. Ke1 fxe3 $16) 34... Bf7 {[%emt 0:00:00][%cal Ob6b5]} 35. Rc6 {[%emt 0:06:10]} ({Weaker is} 35. Rxa7 Bc4 36. Bxc4+ Nxc4 $11) 35... Ne8 {[%emt 0:00:00]} 36. Be2 {[%emt 0:07:49]} fxe3+ {[%emt 0:00:00]} 37. Kxe3 {[%emt 0:00:04]} Ra1 {[%emt 0:00:00]} 38. Rc3 {[%emt 0:02:25]} Nf6 {[%emt 0:00:00]} 39. Rc8+ {[%emt 0:02:17]} Kg7 {[%emt 0:00:00]} 40. Nc2 $1 {[%emt 0:00:07]} Nd5+ {[%emt 0:00:00]} 41. Kd2 {[%emt 0:33:50]} Rh1 {[%emt 0:31:43]} 42. h3 {[%emt 0:06:16]} Rg1 {[%emt 0:01:46]} (42... a5 $16) 43. Ne3 {[%emt 0:04:51]} (43. Ne1 $1 $18) 43... Nxe3 {[%emt 0:02:16]} 44. Kxe3 {[%emt 0:00:02]} Rxg2 $16 {[%emt 0:00:12][%mdl 4096] Endgame KRB-KRB} (44... Ra1 $16) 45. Rc7 $18 {[%emt 0:00:25]} Kf6 {[%emt 0:02:57]} 46. Rxa7 {[%emt 0:00:09]} Rh2 {[%emt 0:00:14]} (46... Bd5 $142 47. Rxh7 Rg1) 47. Rb7 {[%emt 0:00:30]} Rxh3 {[%emt 0:00:10]} 48. Rxb6+ {[%emt 0:00:04]} Ke5 {[%emt 0:00:15]} 49. Bf1 {[%emt 0:05:07]} Rh1 {[%emt 0:02:07]} 50. Kf2 {[%emt 0:02:32]} (50. f4+ $18 Kf5 51. Bd3+ Kg4 52. a4) 50... Bd5 $16 {[%emt 0:00:51][%cal Od5f3]} 51. a4 {[%emt 0:00:00][%cal Ba3a4,Ba4a5,Ba5a6][%mdl 32]} Bxf3 {[%emt 0:00:00][%cal Og6g5]} 52. a5 {[%emt 0:00:00] aiming for a6.} ({Reject} 52. Kxf3 $6 Rxf1+ 53. Kg3 Rg1+ 54. Kf3 Rf1+ 55. Kg4 Rg1+ 56. Kf3 Rf1+ $11) 52... Bd5 {[%emt 0:00:00]} (52... g5 $16 {was necessary.}) 53. Rb5 $1 $18 {[%emt 0:00:00][%cal Ob5d5]} Rh2+ {[%emt 0:00:00]} 54. Kg3 {[%emt 0:00:00]} (54. Ke3 $18 {Hoping for Bc4.} Kd6 55. Bd3) 54... Rc2 $14 {[%emt 0:00:00] Against Bc4} 55. a6 {[%emt 0:00:00]} Rc3+ {[%emt 0:00:00]} (55... Kd6 $1 $14) 56. Kf2 $1 $16 {[%emt 0:00:00] And now a7 would win.} Rc2+ {[%emt 0:00:00]} (56... Kd6 $16) 57. Ke3 $18 {[%emt 0:00:00] Black must now prevent a7.} Rc3+ {[%emt 0:00:00]} 58. Bd3 {[%emt 0:00:00]} (58. Kd2 $18 {is the precise move to win.} Ra3 59. Bc4) 58... Ra3 $16 {[%emt 0:00:00] [#]} 59. Rc5 $1 {[%emt 0:00:00]} h5 {[%emt 0:00:00]} 60. Rc8 {[%emt 0:00:00]} Be6 {[%emt 0:00:00]} 61. Re8 {[%emt 0:00:00] b5 is the strong threat.} Kd6 {[%emt 0:00:00] [#]} 62. Kd4 $1 {[%emt 0:00:00] Strongly threatening b5.} Bd7 $2 {[%emt 0:00:00][%mdl 8192]} (62... h4 $16) 63. Rg8 $18 {[%emt 0:00:00]} Kc7 {[%emt 0:00:00]} (63... Bf5 $142) 64. Rg7 {[%emt 0:00:00]} h4 {[%emt 0:05:42]} 65. Bb5 {[%emt 0:01:46]} Kb6 {[%emt 0:00:07]} 66. Bxd7 {[%emt 0:00:26]} Kxa6 {[%emt 0:00:13]} 67. Rxg6+ {[%emt 0:00:18] KRB-KR. White mates.} Ka7 {[%emt 0:00:16]} 68. Rh6 {[%emt 0:00:27]} Ra2 {[%emt 0:00:13]} 69. Kc5 {[%emt 0:00:17]} Rc2+ {[%emt 0:01:22]} 70. Kb5 {[%emt 0:00:04]} Rd2 {[%emt 0:01:03]} 71. Bc6 {[%emt 0:00:20]} Rd8 {[%emt 0:00:22]} 72. Rh7+ {[%emt 0:01:02]} Kb8 {[%emt 0:00:09]} 73. Kb6 {[%emt 0:00:29] Weighted Error Value: White=0.22 (precise) /Black=0.27 (precise)} 1-0